Cogmind - Beta 11 X6 @@@ ROGUE MODE // 2021.08.11 @ 07:43:01 Player: Olga Result: Self-destructed Performance ------------- Evolutions (3) 1500 Regions Visited (8) 1600 Robots Destroyed (46) 230 Value Destroyed (1551) 1551 Prototype IDs (23) 460 Alien Tech Used (0) 0 Bonus (449) 449 TOTAL SCORE: 5790 Bonus ------- High Alert Combat Kills 114 Follower Combat Kills 35 Aligned with FarCom 300 Cogmind --------- Core Integrity 499/700 Matter 45/300 Energy 275/275 System Corruption 1% Temperature Cool (0) Movement Walking (130) Location -7/Factory Parts ------- > --- POWER (1) -------- Deuterium Engine > --- PROPULSION (4) --- Titanium Leg Titanium Leg Improved Titanium Leg > --- UTILITY (6) ------ Large Storage Unit Improved Signal Interpreter Core Analyzer Weapon Cycler Hardened Medium Armor Plating System Shield > --- WEAPON (2) ------- Autogun Autogun > --- INVENTORY (15) --- Deuterium Engine Deuterium Engine Nuclear Core Aluminum Leg Improved Aluminum Leg Improved Aluminum Leg Titanium Leg Large Storage Unit Visual Processing Unit Advanced ECM Suite Improved Medium Armor Plating Autogun Flak Cannon Flak Cannon Peak State ------------ > --- POWER ------------ Deuterium Engine > --- PROPULSION ------- Titanium Leg Titanium Leg Titanium Leg Improved Titanium Leg > --- UTILITY ---------- Large Storage Unit Improved Signal Interpreter Core Analyzer Weapon Cycler Hardened Medium Armor Plating System Shield > --- WEAPON ----------- Autogun Minigun > --- INVENTORY -------- Deuterium Engine Deuterium Engine Nuclear Core Aluminum Leg Aluminum Leg Improved Aluminum Leg Improved Aluminum Leg Large Storage Unit Visual Processing Unit Advanced ECM Suite Improved Medium Armor Plating Autogun Autogun Flak Cannon Flak Cannon [Rating: 42] Favorites ----------- Power Light Ion Engine Engine Light Ion Engine Propulsion Aluminum Leg Leg Aluminum Leg Wheel Wheel Utility Large Storage Unit Device Weapon Cycler Storage Large Storage Unit Processor Improved Signal Interpreter Hackware System Shield Protection Light Armor Plating Weapon Heavy Battle Rifle Energy Gun Medium Laser Ballistic Gun Heavy Battle Rifle Ballistic Cannon Flak Cannon Build | -11 -10 -10 -9 -9 -9 -8 -8 -7 ------- Run | Scr Mat Min Mat Min Exi Min Mat Fac Slots Evolved 6 | . . . 2 . . . 2 2 Power . | . . . . . . . . . Propulsion 2 | . . . 2 . . . . . Utility 4 | . . . . . . . 2 2 Weapon . | . . . . . . . . . Parts Attached 50 | . 8 . 7 7 . 6 4 18 Power 6 | . 1 . . 2 . 1 . 2 Engine 6 | . 1 . . 2 . 1 . 2 Core . | . . . . . . . . . Reactor . | . . . . . . . . . Propulsion 16 | . 1 . 5 3 . 1 . 6 Treads . | . . . . . . . . . Leg 15 | . . . 5 3 . 1 . 6 Wheel 1 | . 1 . . . . . . . Hover . | . . . . . . . . . Flight . | . . . . . . . . . Utility 19 | . 3 . 1 . . 4 4 7 Device 4 | . . . . . . 1 1 2 Storage 2 | . 1 . . . . . . 1 Processor 3 | . . . . . . . 1 2 Hackware 1 | . . . . . . . 1 . Protection 9 | . 2 . 1 . . 3 1 2 Artifact . | . . . . . . . . . Weapon 9 | . 3 . 1 2 . . . 3 Energy Gun 2 | . 2 . . . . . . . Energy Cannon . | . . . . . . . . . Ballistic Gun 5 | . 1 . . 1 . . . 3 Ballistic Cannon 2 | . . . 1 1 . . . . Launcher . | . . . . . . . . . Special Weapon . | . . . . . . . . . Impact Weapon . | . . . . . . . . . Slashing Weapon . | . . . . . . . . . Piercing Weapon . | . . . . . . . . . Special Melee Weapon . | . . . . . . . . . Unidentified Prototypes . | . . . . . . . . . Parts Lost 9 | . 4 . 1 . . . . 4 Power 2 | . 1 . . . . . . 1 Propulsion 1 | . . . . . . . . 1 Utility 2 | . 1 . 1 . . . . . Weapon 4 | . 2 . . . . . . 2 Highest Loss Streak 2 | . 2 . 1 . . . . 2 Average Slot Usage (%) 98 | . 98 100 98 100 100 100 96 97 Engine 9 | . 13 14 11 11 11 11 9 6 Leg 35 | . 22 14 43 44 44 44 36 29 Device 2 | . . . . . . 4 . 5 Storage 9 | . 14 14 11 11 11 11 9 7 Processor 5 | . . . . . . . 7 14 Hackware 2 | . . . . . . . 6 7 Protection 9 | . 13 14 11 11 11 7 9 6 Energy Gun 4 | . 26 14 1 . . . . . Ballistic Gun 10 | . 1 14 11 11 11 11 9 13 Ballistic Cannon 5 | . . . 7 11 11 11 9 1 Naked Turns . | . . . . . . . . . Heaviest Build 45 | 13 30 28 33 42 36 40 41 45 Greatest Support 69 | 20 20 10 40 40 40 40 40 69 Greatest Overweight (x) 2 | . 2 2 1 1 . . 1 . Average Overweight (x) . | . 1 2 . . . . . . Largest Inventory Capacity 15 | . 15 15 15 15 15 15 15 15 Average Capacity 14 | . 11 15 15 15 15 15 15 15 Most Carried 15 | . 9 9 15 15 15 15 15 15 Average Carried 13 | . 5 9 11 14 14 14 13 14 Final Capacity 15 | 8 15 15 15 15 15 15 15 15 Final Carried 15 | 6 9 9 15 15 15 15 14 14 Class Distribution -------------------- 56% | Scavenger-Mutant 43% | Mutant Dominant Class ---------------- Mutant | -10/Materials Mutant | -10/Mines Scavenger-Mutant | -9/Materials Scavenger-Mutant | -9/Mines Scavenger-Mutant | -9/Exiles Scavenger-Mutant | -8/Mines Scavenger-Mutant | -8/Materials Mutant | -7/Factory Resources | -11 -10 -10 -9 -9 -9 -8 -8 -7 ----------- Run | Scr Mat Min Mat Min Exi Min Mat Fac Matter Collected 1176 | 200 66 15 188 166 . 150 . 391 Remotely . | . . . . . . . . . Salvage Created 1397 | . 300 . 172 105 . 202 . 618 Parts 91 | . 16 . 15 8 . 11 . 41 Haulers Intercepted . | . . . . . . . . . Recyclers Shooed . | . . . . . . . . . Parts Field Recycled . | . . . . . . . . . Retrieved Matter . | . . . . . . . . . Parts Self-Destructed . | . . . . . . . . . Prevented . | . . . . . . . . . Kills | -11 -10 -10 -9 -9 -9 -8 -8 -7 ------- Run | Scr Mat Min Mat Min Exi Min Mat Fac Combat Hostiles Destroyed 44 | . 9 . 6 3 . 9 . 17 Guns 31 | . 9 . 1 1 . 4 . 16 Cannons 12 | . . . 5 2 . 5 . . AOE 1 | . . . . . . . . 1 Classes Destroyed 9 | . 2 . 1 1 . 1 . 4 Worker 1 | . . . . . . . . 1 Builder 1 | . . . . . . . . 1 Swarmer 17 | . 3 . . . . 4 . 10 Grunt 19 | . 6 . 4 2 . 3 . 4 Brawler 2 | . . . . 1 . 1 . . Duelist 1 | . . . . . . 1 . . Sentry 3 | . . . 2 . . . . 1 Hunter 1 | . . . . . . . . 1 Programmer 1 | . . . . . . . . 1 Best Kill Streak 5 | . 3 . 2 3 . 5 . 4 Combat Bots Only 5 | . 3 . 2 3 . 5 . 4 Max Kills in Single Turn 1 | . 1 . 1 1 . 1 . 1 Gunslinging . | . . . . . . . . . Exploded 1 | . . . . . . . . 1 Melee . | . . . . . . . . . Uniques/NPCs Destroyed . | . . . . . . . . . Combat | -11 -10 -10 -9 -9 -9 -8 -8 -7 -------- Run | Scr Mat Min Mat Min Exi Min Mat Fac Damage Taken 3152 | . 699 31 331 43 . 270 261 1517 Core 528 | . 147 18 54 10 . 39 59 201 Absorbed by Shields . | . . . . . . . . . Core Remaining (%) 74 | 100 . 34 . . . 74 89 . Volleys Fired 120 | . 33 . 14 4 . 16 . 53 Largest 2 | . 2 . 2 2 . 2 . 2 Hottest 100 | . 100 . 64 77 . 77 . 77 Shots Fired 227 | . 54 . 28 8 . 32 . 105 Gun 188 | . 54 . 14 4 . 16 . 100 Cannon 39 | . . . 14 4 . 16 . 5 Launcher . | . . . . . . . . . Special . | . . . . . . . . . Kinetic 173 | . . . 28 8 . 32 . 105 Thermal 54 | . 54 . . . . . . . Explosive . | . . . . . . . . . Electromagnetic . | . . . . . . . . . Robot Hit Streak 13 | . 9 . 10 5 . 6 . 13 Robot Miss Streak 7 | . 2 . 4 1 . 7 . 6 Penetration Max . | . . . . . . . . . Secondary Targets 1 | . 1 . . . . . . . Max Gunslinging Chain 1 | . 1 . . . . . . . Shots Hit Robots 153 | . 40 . 22 5 . 22 . 64 Core Hits 108 | . 18 . 20 8 . 26 . 36 Critical Kills . | . . . . . . . . . Critical Parts Destroyed 2 | . . . 1 . . . . 1 Critical Strikes 7 | . 5 . 1 . . . . 1 Burn 5 | . 5 . . . . . . . Destroy 2 | . . . 1 . . . . 1 Melee Attacks . | . . . . . . . . . Impact . | . . . . . . . . . Slashing . | . . . . . . . . . Piercing . | . . . . . . . . . Sneak Attacks . | . . . . . . . . . Combat Hostiles . | . . . . . . . . . Follow-up Attacks . | . . . . . . . . . Damage Inflicted 2928 | . 530 6 356 128 . 519 26 1363 Guns 2022 | . 479 . 74 45 . 250 . 1174 Cannons 673 | . . . 282 82 . 255 . 54 Explosions 132 | . . . . . . . . 132 Melee . | . . . . . . . . . Ramming 101 | . 51 6 . 1 . 14 26 3 Kinetic 2216 | . . . 356 127 . 505 . 1228 Thermal 479 | . 479 . . . . . . . Explosive 132 | . . . . . . . . 132 Electromagnetic . | . . . . . . . . . Impact . | . . . . . . . . . Slashing . | . . . . . . . . . Piercing . | . . . . . . . . . Highest Corruption 2 | . 2 2 . . . . . 1 Average Corruption 1 | . 2 2 . . . . . 1 Corruption Purged . | . . . . . . . . . Effects 1 | . . . . . . . . 1 Data Loss (minor) 1 | . . . . . . . . 1 Overload Shots . | . . . . . . . . . Overflow Damage 1 | . . . . . . . . 1 Projectiles . | . . . . . . . . . Explosions 1 | . . . . . . . . 1 Melee . | . . . . . . . . . Knockbacks 18 | . . . 8 . . 6 . 4 Impact . | . . . . . . . . . Kinetic 17 | . . . 8 . . 5 . 4 Secondary 1 | . . . . . . 1 . . Self-Inflicted Damage 13 | . 10 3 . . . . . . Shots . | . . . . . . . . . Rammed 4 | . 3 1 . . . . . . Targets Rammed 30 | . 22 1 . 1 . 3 2 1 Kicked 26 | . 19 . . 1 . 3 2 1 Crushed . | . . . . . . . . . Highest Temperature 339 | . 339 . 64 66 . 211 9 41 Average Temperature 75 | . 135 . 24 34 . 77 9 13 Received Heat Transfer 852 | . 264 15 156 6 . 117 117 177 Effects 2 | . 2 . . . . . . . Energy Bleed 1 | . 1 . . . . . . . Interference 1 | . 1 . . . . . . . Siege Activations . | . . . . . . . . . Robots Corrupted . | . . . . . . . . . Combat Hostiles . | . . . . . . . . . Parts Fried . | . . . . . . . . . Impact Corruptions . | . . . . . . . . . Robots Melted . | . . . . . . . . . Combat Hostiles . | . . . . . . . . . Parts Melted 6 | . 6 . . . . . . . Heat Transferred 1670 | . 1670 . . . . . . . Parts Sabotaged . | . . . . . . . . . Parts Stolen . | . . . . . . . . . Parts Stripped . | . . . . . . . . . Power Chain Reactions . | . . . . . . . . . Missiles Intercepted . | . . . . . . . . . Alert | -11 -10 -10 -9 -9 -9 -8 -8 -7 ------- Run | Scr Mat Min Mat Min Exi Min Mat Fac Peak Influence 860 | . 184 48 196 146 . 211 161 860 Initial 81 | . . 33 18 76 . . 81 72 Average 168 | . 103 38 92 71 . 131 114 291 Maximum Alert Level 3 | . . . . . . 1 . 3 Low Security (%) 81 | . 100 100 100 100 . 75 100 56 Level 1 9 | . . . . . . 24 . 20 Level 2 1 | . . . . . . . . 4 Level 3 7 | . . . . . . . . 19 Level 4 . | . . . . . . . . . Level 5 . | . . . . . . . . . High Security . | . . . . . . . . . Max Security . | . . . . . . . . . Squads Dispatched 14 | . 3 . 1 . . . 5 5 Investigation 6 | . 3 . 1 . . . 1 1 Extermination 1 | . . . . . . . . 1 Reinforcement 7 | . . . . . . . 4 3 Assault . | . . . . . . . . . Garrison . | . . . . . . . . . Intercept . | . . . . . . . . . Construction Impeded 1 | . . . . . . . . 1 Haulers Reinforced . | . . . . . . . . . Active Scanning Responses . | . . . . . . . . . Cargo Convoy Interrupts 1 | . . . . . . . . 1 Stealth | -11 -10 -10 -9 -9 -9 -8 -8 -7 --------- Run | Scr Mat Min Mat Min Exi Min Mat Fac Distress Signals 5 | . 2 . . . . . . 3 Communications Jammed . | . . . . . . . . . Distress Signals . | . . . . . . . . . Times Spotted 79 | . 14 2 7 3 . 10 9 34 Peak Tracking Total 8 | . 5 2 3 3 . 6 8 6 Tactical Retreats 4 | . 2 . . . . . 1 1 Traps | -11 -10 -10 -9 -9 -9 -8 -8 -7 ------- Run | Scr Mat Min Mat Min Exi Min Mat Fac Traps Triggered 5 | . 1 . 2 . . . 2 . Indirectly . | . . . . . . . . . Trap Hack Attempts . | . . . . . . . . . Triggered . | . . . . . . . . . Disarmed . | . . . . . . . . . Reprogrammed . | . . . . . . . . . Reused . | . . . . . . . . . Traps Extracted . | . . . . . . . . . Installed . | . . . . . . . . . Triggered 1 | . . . . . . . . 1 Machines | -11 -10 -10 -9 -9 -9 -8 -8 -7 ---------- Run | Scr Mat Min Mat Min Exi Min Mat Fac Machines Disabled 9 | . . . . . . 1 . 8 Max in Single Turn 3 | . . . . . . . . 3 Machines Sabotaged . | . . . . . . . . . Garrisons Compromised 1 | . . . . . . . . 1 Overloaded Fab Kills . | . . . . . . . . . Fab Network Shutdowns . | . . . . . . . . . Hacking | -11 -10 -10 -9 -9 -9 -8 -8 -7 --------- Run | Scr Mat Min Mat Min Exi Min Mat Fac Machines Accessed 16 | . 6 . 3 . 1 1 1 4 Terminals 11 | . 5 . 3 . . 1 . 2 Fabricators . | . . . . . . . . . Repair Stations 1 | . . . . . . . . 1 Recycling Units 3 | . 1 . . . . . 1 1 Scanalyzers . | . . . . . . . . . Garrison Access . | . . . . . . . . . Total Hacks 32 | . 13 . 10 . 1 1 1 6 Successful 23 | . 9 . 8 . 1 . 1 4 Failed 9 | . 4 . 2 . . 1 . 2 Catastrophic 2 | . 1 . . . . . . 1 Database Lockouts . | . . . . . . . . . Manual 31 | . 13 . 11 . 1 . 1 5 Terminals 26 | . 12 . 10 . . 1 . 3 Fabricators . | . . . . . . . . . Repair Stations 2 | . . . . . . . . 2 Recycling Units 3 | . 1 . . . . . 1 1 Scanalyzers . | . . . . . . . . . Garrison Access . | . . . . . . . . . Terminal Hacks 1 | . . . . . 1 . . . EX-Prototype ID Bank 1 | . . . . . 1 . . . Fabricator Hacks . | . . . . . . . . . Repair Station Hacks 2 | . . . . . . . . 2 Scan Component 1 | . . . . . . . . 1 Repair 1 | . . . . . . . . 1 Recycling Unit Hacks . | . . . . . . . . . Scanalyzer . | . . . . . . . . . Garrison Access Hacks . | . . . . . . . . . Unauthorized Hacks 20 | . 9 . 8 . . . 1 2 Terminals 17 | . 8 . 8 . . . . 1 Track 7 | . 4 . 3 . . . . . Assimilate 2 | . . . 2 . . . . . Botnet 8 | . 4 . 3 . . . . 1 Fabricators . | . . . . . . . . . Repair Stations . | . . . . . . . . . Recycling Units 3 | . 1 . . . . . 1 1 Tunnel 3 | . 1 . . . . . 1 1 Scanalyzers . | . . . . . . . . . Garrison Access . | . . . . . . . . . Data Cores Recovered . | . . . . . . . . . Used . | . . . . . . . . . Hacking Detections 11 | . 5 . 3 . . 1 . 2 Full Trace Events 2 | . 1 . 1 . . . . . Feedback Events . | . . . . . . . . . Feedback Blocked . | . . . . . . . . . Robot Schematics Acquired . | . . . . . . . . . Robots Built . | . . . . . . . . . Matter . | . . . . . . . . . Time . | . . . . . . . . . Total Robot Build Rating . | . . . . . . . . . Part Schematics Acquired . | . . . . . . . . . Parts Built . | . . . . . . . . . Matter . | . . . . . . . . . Time . | . . . . . . . . . Total Part Build Rating . | . . . . . . . . . Parts Repaired 1 | . . . . . . . . 1 Time 38 | . . . . . . . . 38 Parts Recycled . | . . . . . . . . . Recycled Matter . | . . . . . . . . . Retrieved Matter . | . . . . . . . . . Retrieved Components . | . . . . . . . . . Parts Scanalyzed . | . . . . . . . . . Part Schematics Acquired . | . . . . . . . . . Parts Damaged . | . . . . . . . . . Bothacking | -11 -10 -10 -9 -9 -9 -8 -8 -7 ------------ Run | Scr Mat Min Mat Min Exi Min Mat Fac Used RIF Installer . | . . . . . . . . . Robots Hacked . | . . . . . . . . . Non-combat . | . . . . . . . . . Combat . | . . . . . . . . . Robot Hacks Applied . | . . . . . . . . . Relay Couplers Released . | . . . . . . . . . Robots Rewired . | . . . . . . . . . Allies Hacked . | . . . . . . . . . Hacks Repelled . | . . . . . . . . . Allies | -11 -10 -10 -9 -9 -9 -8 -8 -7 -------- Run | Scr Mat Min Mat Min Exi Min Mat Fac Total Allies 4 | . . . 1 3 . . . . Largest Group 3 | . . . 1 3 3 3 . . Highest-Rated Group 40 | . . . 10 40 40 40 . . Highest-Rated Ally 16 | . . . 10 16 16 16 . . Total Orders 4 | . . . . . . 2 2 . EXPLORE 2 | . . . . . . 1 1 . RETURN 2 | . . . . . . 1 1 . Ally Attacks 16 | . . . . . . 16 . . Total Damage 178 | . . . . . . 178 . . Kills 1 | . . . . . . 1 . . Allies Corrupted . | . . . . . . . . . Allies Melted . | . . . . . . . . . Intel | -11 -10 -10 -9 -9 -9 -8 -8 -7 ------- Run | Scr Mat Min Mat Min Exi Min Mat Fac Robot Analysis Total . | . . . . . . . . . Derelict Logs Recovered . | . . . . . . . . . Drone Launches 2 | . . . . . . 1 1 . Drone Recoveries 1 | . . . . . . 1 . . Exploration | -11 -10 -10 -9 -9 -9 -8 -8 -7 ------------- Run | Scr Mat Min Mat Min Exi Min Mat Fac Turns Passed 3359 | . 510 15 303 661 268 218 233 1151 Spaces Moved 2202 | 1 290 13 191 522 222 103 183 677 Core . | . . . . . . . . . Treads . | . . . . . . . . . Legs 2054 | 1 155 . 191 522 222 103 183 677 Wheels 148 | . 135 13 . . . . . . Hover . | . . . . . . . . . Flight . | . . . . . . . . . Fastest Speed 110 | 120 110 110 120 120 120 120 120 120 Average Speed 121 | 120 121 110 120 120 120 120 122 125 Slowest Speed 200 | 120 200 110 200 200 120 120 200 130 Overloaded Moves . | . . . . . . . . . Propulsion Burnouts . | . . . . . . . . . Robots Hopped . | . . . . . . . . . Cave-ins Triggered . | . . . . . . . . . Exploration Rate (%) 35 | 2 52 8 18 85 62 37 40 19 Regions Visited 8 Branch Regions 4 Pre-discovered Areas 3 | . 1 . . . . . 1 1 Known Exits Taken 1 | . . . . . . . 1 . Unknown Exits Taken 7 | 1 1 1 1 1 1 1 . . Scrap Searched 5 | . . 1 . 3 . 1 . . Spaces Dug . | . . . . . . . . . Terrain Destroyed 39 | . . . . 2 . . . 37 Melee . | . . . . . . . . . Projectile 3 | . . . . 2 . . . 1 AOE 36 | . . . . . . . . 36 Terrain Rammed . | . . . . . . . . . Walls Destroyed . | . . . . . . . . . Machines Disabled . | . . . . . . . . . Actions | -11 -10 -10 -9 -9 -9 -8 -8 -7 --------- Run | Scr Mat Min Mat Min Exi Min Mat Fac Total 2690 | . 393 13 240 549 224 165 193 913 Wait 213 | . 21 . 9 8 1 33 . 141 Move 2195 | . 289 13 190 521 221 102 182 677 Hop . | . . . . . . . . . Pick Up 45 | . 14 . 16 2 1 1 2 9 Fast Attach 7 | . . . . . . . 1 6 Attach 18 | . 5 . 6 . . . 3 4 Detach 1 | . . . . . . . 1 . Swap 25 | . 3 . 1 7 . 6 . 8 Drop 37 | . 6 . 4 6 1 4 2 14 Fire 120 | . 33 . 14 4 . 16 . 53 Melee . | . . . . . . . . . Ram 3 | . 3 . . . . . . . Kick 26 | . 19 . . 1 . 3 2 1 Crush . | . . . . . . . . . Escape Stasis . | . . . . . . . . . Rewire . | . . . . . . . . . Trap . | . . . . . . . . . Miscellaneous . | . . . . . . . . . Route ------- -11/Scrapyard -10/Materials (discovered 2 exits: *Mat / [*Min]) -10/Mines -9/Materials -9/Mines (discovered 3 exits: *Mat x2 / *Exi) -9/Exiles (discovered 2 exits: *Min x2) -8/Mines -8/Materials -7/Factory History --------- Turn | Location | Event 1 | -11/Scrapyard | Discovered new exit (range 0) 1 | -11/Scrapyard | Entered Materials 323 | -10/Materials | Build established: Mutant 361 | -10/Materials | Discovered new exit (range 3) 439 | -10/Materials | Core integrity fell below 50% 503 | -10/Materials | Discovered new exit (range 5) 511 | -10/Materials | Entered Mines 521 | -10/Mines | Discovered new exit (range 5) 526 | -10/Mines | Entered Materials 526 | -9/Materials | Evolved 2 slots: Propulsion x2 810 | -9/Materials | Discovered new exit (range 16) 829 | -9/Materials | Entered Mines 892 | -9/Mines | A weapon hastily lodged in a ceiling crevice suddenly fell to the ground 1074 | -9/Mines | Assisted by bots powering up and referring to "LRC-V3" 1155 | -9/Mines | Discovered new exit (range 6) 1241 | -9/Mines | Discovered new exit (range 9) 1304 | -9/Mines | Build established: Scavenger-Mutant 1477 | -9/Mines | Deemed a non-threat by the Exiles lab entrance 1478 | -9/Mines | Discovered new exit (range 5) 1490 | -9/Mines | Entered Exiles 1490 | -9/Exiles | Accompanied by 3 allies 1506 | -9/Exiles | Discovered new exit (range 15) 1519 | -9/Exiles | Met 8R-AWN 1541 | -9/Exiles | Met EX-HEX 1576 | -9/Exiles | Met EX-BIN 1592 | -9/Exiles | Aligned with FarCom system 1594 | -9/Exiles | Given EX-Vault access code 1625 | -9/Exiles | Opened EX-Vault 1634 | -9/Exiles | Found Supersonic Drone Bay 1660 | -9/Exiles | Warned to stay clear of 0b10 Research branches 1697 | -9/Exiles | Met EX-DEC 1744 | -9/Exiles | Discovered new exit (range 10) 1758 | -9/Exiles | Left Exiles lab with Supersonic Drone Bay 1758 | -9/Exiles | Entered Mines 1758 | -8/Mines | Accompanied by 3 allies 1838 | -8/Mines | Discovered new exit (range 55) 1976 | -8/Mines | Entered Materials 1976 | -8/Materials | Evolved 2 slots: Utility x2 1996 | -8/Materials | Discovered new exit (range 70) 2207 | -8/Materials | Identified exit to Factory 2209 | -8/Materials | Entered Factory 2209 | -7/Factory | Evolved 2 slots: Utility x2 2842 | -7/Factory | Build established: Mutant 3047 | -7/Factory | Repaired Hrd. Medium Armor Plating 3090 | -7/Factory | Cargo convoy interrupted 3360 | -7/Factory | Self-destructed Last Messages --------------- 03167_ U-05 Engineer lays Concrete. 03182_ Acquired Nuclear Core. 03208_ K-01 Serf collects debris. 03212_ U-05 Engineer lays Concrete. 03236_ G-47 Trooper destroyed. 03240_ Critical hit (Burn: +37). 03243_ Acquired 59 matter. 03246_ G-47 Trooper destroyed. 03248_ Acquired 40 matter. 03251_ K-01 Serf collects debris. 03263_ System corrupted: Component data lost. 03276_ Dropped Carbon-fiber Leg. 03277_ Dropped Titanium Leg. 03278_ Acquired Carbon-fiber Leg. 03282_ Dropped Aluminum Leg. 03285_ Acquired Titanium Leg. 03304_ Connecting with Terminal... 03326_ Minigun destroyed. 03347_ Carbon-fiber Leg destroyed. 03354_ Y-54 Guardian destroyed. Map ----- +----------------------------------------------------+ | #??????????????????????????????????????????????? | | #??????????????????????????????????????????????? | | #??????????????????????????????????????????????? | | #??????????????????????????????????????????????? | | #????????????????????????? ???????????????????? | | #????????????????????????? ???????????????????? | | #????????????????????????? ???????????????????? | | #????????????????????????? ???????????????????? | | #????????????????????????? ???????????????????? | | #????????????????????????? ???????????????????? | | #????????????????????????? ???????????????????? | | ###????????????????????????# ???????????????????? | | ???????????????????????????# ???????????????????? | | ???????????????????????????# #???????????????????? | | ???????????????????????????# #???????????????????? | | ######?????????????????????# #???????????????????? | | ?????????????????????# #???????????????????? | | #???????????????????????# #???????????????????? | | #???????????????????????# #???????????????????? | | #???????????????????????# #???????????????????? | | #???????????????????????# #???????????????????? | | ##########??????????????# #???????????????????? | | # #????###########!######### ???????? | | # """ ###### !%* ??????? | | # """ + w [= ??????? | | # """ ###### @ ??????? | | + #????### #################[ ???????? | | # [ #??????#o#???????????????????????????? | | # #??????# #???????????????????????????? | | #| "T" #??????# #???????????????????????????? | | # """ #??????# #???????????????????????????? | | ##########??????# #???????????????????????????? | | #???????????????# #???????????????????????????? | | #???????????????# #???????????????????????????? | | #???????????????#+#???????????????????????????? | | #?????????????????????????????????????????????? | | #?????????????????????????????????????????????? | | ?????????????????????????????????????????????? | | ?????????????????????????????????????????????? | | ??????????????????s?????????????????????????? | | ????????????????s??s????????????????????????? | | ???????????????????????????????????????????? | | #+###??????????????????s?????????????????????????? | | ?????????????????????????????????????????????????? | | ?????????????????????????????????????????????????? | | ?????????????????????????????????????????????????? | | ?????????????????????????????????????????????????? | | ?????????????????????????????????????????????????? | | ?????????????????????????????????????????????????? | | ?????????????????????????????????????????????????? | +----------------------------------------------------+ Best States ------------- Heat Dissipation 34 Energy Generation 14 Energy Capacity 275 Matter Stores 300 Matter Capacity 300 Sight Range 16 Terrain Scan Density 85 Armor Coverage 225 Weapon Cycling 15 Evasion (%) 55 Core Analysis 6 Defensive Hacking 10 Item Schematics ----------------- None Robot Schematics ------------------ None Fabricated ------------ Nothing Alien Tech Used ----------------- None Achievements -------------- None Challenges ------------ None Game ------ Seed BurstSalvageShielding Manual? 0 Play Time 00:36:36 Cumulative 62.7 hours Start 2021.08.11 @ 12:29:41 End 2021.08.11 @ 07:43:01 Sessions 5 Manual Loads 0 Difficulty Rogue Special Mode None Game No. 77 Rogue 77 Adventurer 0 Explorer 0 Win Type - Total 0 Types 0/0/0/0/0/0/0/0/0 Lore% 49 Gallery% 44 Achievement% 37 Wizard Run 0 Options --------- ASCII 1 Keyboard 0 Movement Vi Keybinds 0 Fullscreen 1 Font 20/SmallcapsGlow Map View 66x50 Tactical HUD 1 Map Filters NONE Filters NONE Steam 1 RUN: f3353577-934f-46a8-a712-6133058734f9